{"text_format":"3","workbook":"xlsx","n_sheets":4,"sheets":["Início","Despesas","Rendimentos","Resumo"],"not_rendered":{"charts":1,"defined_names":2},"read":"whole","date_system":"1900"}

{"sheet":"Início","index":0,"n_rows":8,"n_cols":2,"rows_kept":8}
[null,"ACERCA DESTE MODELO"]
[null,"Utilize este livro Orçamento de Eventos para controlar as Despesas e os Rendimentos de um evento."]
[null,"Preencha o Nome do Evento e introduza os detalhes nas tabelas nas folhas de cálculo Despesas e Rendimentos."]
[null,"As Despesas Totais e os Rendimentos Totais são calculadas automaticamente."]
[null,"O Resumo e o Gráfico dos Lucros e Perdas são atualizados automaticamente na folha de cálculo Resumo."]
[null,"Nota: "]
[null,"Encontram-se instruções adicionais na coluna A de cada folha de cálculo. O texto encontra-se intencionalmente oculto. Para remover o texto, selecione a coluna A e, em seguida, selecione Eliminar. Para mostrar o texto, selecione a coluna A e, em seguida, mude a cor do tipo de letra."]
[null,"Para saber mais sobre as tabelas, prima Shift+F10 numa tabela, selecione a opção Tabela e, em seguida, selecione Texto Alternativo."]

{"sheet":"Despesas","index":1,"n_rows":33,"n_cols":8,"rows_kept":33,"merged":[[0,5,0,7],[1,1,1,7],[2,6,2,7]]}
["Introduza as Despesas Estimadas e Reais para cada categoria nas respetivas tabelas nesta folha de cálculo. As Despesas Totais são calculadas automaticamente. Existem instruções úteis sobre como utilizar esta folha de cálculo nas células desta coluna. Prima a Seta Para Baixo para começar."]
["Introduza o Nome do Evento na célula à direita para personalizar o título desta e de outras folhas de cálculo.","Orçamento do Evento \nNome do Evento"]
["A etiqueta Despesas está na célula G3.",{"$nulls":5}," Despesas"]
["A etiqueta Despesas Estimadas está na célula G4 e a etiqueta Despesas Reais está na célula H4.",{"$nulls":5},"Despesas Estimadas","Despesas Reais"]
["A etiqueta Despesas Totais está na célula à direita. As Despesas Totais Estimadas são calculadas automaticamente na célula G5. As Despesas Totais Reais e a barra de dados que representa as Despesas Totais Reais são atualizadas automaticamente na célula H5. A instrução seguinte está na célula A7.","Despesas Totais",{"$nulls":4},{"$f":"SUM(C12,C20,C26,C33,G12,G20,G25)","v":{"v":1145,"d":"1,145.00 €"}},{"$f":"SUM(D12,D20,D26,D33,H12,H20,H25)","v":{"v":395,"d":"395.00 €"}}]
[]
["Introduza as Despesas com o Local na tabela que começa na célula à direita e as Despesas com Catering na tabela que começa na célula F7. A instrução seguinte está na célula A14.","Local","Despesas Estimadas","Despesas Reais",null,"Catering","Despesas Estimadas","Despesas Reais"]
[null,"Taxas dos quartos e salas",{"v":500,"d":"500.00 €"},{"v":250,"d":"250.00 €"},null,"Alimentação"]
[null,"Funcionários do local",{"v":400,"d":"400.00 €"},{"v":50,"d":"50.00 €"},null,"Bebidas"]
[null,"Equipamento",{"$nulls":3},"Roupa de Mesa"]
[null,"Mesas e cadeiras",{"$nulls":3},"Funcionários e gorjetas"]
[null,"Total",{"$f":"SUBTOTAL(109,DespesasComOLocal[Despesas Estimadas])","v":{"v":900,"d":"900.00 €"}},{"$f":"SUBTOTAL(109,DespesasComOLocal[Despesas Reais])","v":{"v":300,"d":"300.00 €"}},null,"Total",{"$f":"SUBTOTAL(109,DespesasComCatering[Despesas Estimadas])","v":{"v":0,"d":"0.00 €"}},{"$f":"SUBTOTAL(109,DespesasComCatering[Despesas Reais])","v":{"v":0,"d":"0.00 €"}}]
[]
["Introduza as Despesas com Decorações na tabela que começa na célula à direita e as Despesas com o Programa na tabela que começa na célula F14. A instrução seguinte está na célula A22.","Decorações","Despesas Estimadas","Despesas Reais",null,"Programa","Despesas Estimadas","Despesas Reais"]
[null,"Flores",{"v":200,"d":"200.00 €"},{"v":50,"d":"50.00 €"},null,"Intérpretes"]
[null,"Velas",{"$nulls":3},"Oradores"]
[null,"Iluminação",{"$nulls":3},"Viagens"]
[null,"Balões",{"$nulls":3},"Hotel"]
[null,"Fornecimento de papel",{"$nulls":3},"Outros"]
[null,"Total",{"$f":"SUBTOTAL(109,DespesasComDecorações[Despesas Estimadas])","v":{"v":200,"d":"200.00 €"}},{"$f":"SUBTOTAL(109,DespesasComDecorações[Despesas Reais])","v":{"v":50,"d":"50.00 €"}},null,"Total",{"$f":"SUBTOTAL(109,DespesasComOPrograma[Despesas Estimadas])","v":{"v":0,"d":"0.00 €"}},{"$f":"SUBTOTAL(109,DespesasComOPrograma[Despesas Reais])","v":{"v":0,"d":"0.00 €"}}]
[]
["Introduza as Despesas com Publicidade na tabela que começa na célula à direita e as Despesas com Prémios na tabela que começa na célula F22. A instrução seguinte está na célula A28.","Publicidade","Despesas Estimadas","Despesas Reais",null,"Prémios","Despesas Estimadas","Despesas Reais"]
[null,"Design gráfico",{"v":45,"d":"45.00 €"},{"v":45,"d":"45.00 €"},null,"Fitas/Condecorações/Troféus"]
[null,"Fotocópias/Impressões",{"$nulls":3},"Presentes"]
[null,"Correio",{"$nulls":3},"Total",{"$f":"SUBTOTAL(109,DespesasComPrémios[Despesas Estimadas])","v":{"v":0,"d":"0.00 €"}},{"$f":"SUBTOTAL(109,DespesasComPrémios[Despesas Reais])","v":{"v":0,"d":"0.00 €"}}]
[null,"Total",{"$f":"SUBTOTAL(109,DespesasComPublicidade[Despesas Estimadas])","v":{"v":45,"d":"45.00 €"}},{"$f":"SUBTOTAL(109,DespesasComPublicidade[Despesas Reais])","v":{"v":45,"d":"45.00 €"}}]
[]
["Introduza as Despesas Variadas na tabela que começa na célula à direita.","Diversos","Despesas Estimadas","Despesas Reais"]
[null,"Telefone"]
[null,"Transportes"]
[null,"Fornecimento de papelaria"]
[null,"Serviços de fax"]
[null,"Total",{"$f":"SUBTOTAL(109,DespesasDiversas[Despesas Estimadas])","v":{"v":0,"d":"0.00 €"}},{"$f":"SUBTOTAL(109,DespesasDiversas[Despesas Reais])","v":{"v":0,"d":"0.00 €"}}]

{"sheet":"Rendimentos","index":2,"n_rows":30,"n_cols":7,"rows_kept":30,"merged":[[1,1,1,6],[2,5,2,6]]}
["Introduza os Rendimentos Estimados e Reais para cada categoria nas respetivas tabelas nesta folha de cálculo. Os Rendimentos Totais são calculados automaticamente. Existem instruções úteis sobre como utilizar esta folha de cálculo nas células desta coluna. Prima a Seta Para Baixo para começar."]
["O Nome do Evento é atualizado automaticamente na célula à direita.",{"$f":"Despesas!B2","v":"Orçamento do Evento \nNome do Evento"}]
["A etiqueta Rendimentos está na célula F3.",{"$nulls":4}," Rendimentos"]
["A etiqueta Rendimentos Estimados está na célula F4 e a etiqueta Rendimentos Reais está na célula G4.",{"$nulls":4},"Rendimentos Estimados","Rendimentos Reais"]
["A etiqueta Rendimentos Totais está na célula à direita. Os Rendimentos Estimados Totais são calculados automaticamente na célula F5. Os Rendimentos Reais Totais e a barra de dados que representa os Rendimentos Reais Totais são atualizadas automaticamente na célula G5.","Rendimentos Totais",{"$nulls":3},{"$f":"SUM(Entradas[[#Totals],[Rendimentos Estimados Totais]],AnúnciosNoPrograma[[#Totals],[Rendimentos Estimados Totais]],ExpositoresEVendedores[[#Totals],[Rendimentos Estimados Totais]],VendaDeItens[[#Totals],[Rendimentos Estimados Totais]])","v":{"v":1936,"d":"1,936.00 €"}},{"$f":"SUM(Entradas[[#Totals],[Rendimentos Reais Totais]],AnúnciosNoPrograma[[#Totals],[Rendimentos Reais Totais]],ExpositoresEVendedores[[#Totals],[Rendimentos Reais Totais]],VendaDeItens[[#Totals],[Rendimentos Reais Totais]])","v":{"v":1831,"d":"1,831.00 €"}}]
["A etiqueta Entradas está na célula à direita.","Entradas"]
["Introduza o número de Entradas Estimados e Reais com o preço dos bilhetes na tabela que começa na célula à direita. Os Rendimentos Estimados e Reais das Entradas são calculados automaticamente. A instrução seguinte está na célula A12.","Rendimentos Estimados","Rendimentos Reais","Tipo","Preço","Rendimentos Estimados Totais","Rendimentos Reais Totais"]
[null,300,278,"Adultos /",{"v":5,"d":"5.00 €"},{"$f":"B8*E8","v":{"v":1500,"d":"1,500.00 €"}},{"$f":"C8*E8","v":{"v":1390,"d":"1,390.00 €"}}]
[null,197,195,"Crianças /",{"v":2,"d":"2.00 €"},{"$f":"B9*E9","v":{"v":394,"d":"394.00 €"}},{"$f":"C9*E9","v":{"v":390,"d":"390.00 €"}}]
[null,42,51,"Outros /",{"v":1,"d":"1.00 €"},{"v":42,"d":"42.00 €"},{"v":51,"d":"51.00 €"}]
[null," ",{"$nulls":3},{"$f":"SUBTOTAL(109,Entradas[Rendimentos Estimados Totais])","v":{"v":1936,"d":"1,936.00 €"}},{"$f":"SUBTOTAL(109,Entradas[Rendimentos Reais Totais])","v":{"v":1831,"d":"1,831.00 €"}}]
["A etiqueta Anúncios no programa está na célula à direita.","Anúncios no programa"]
["Introduza o número de Anúncios no programa Estimados e Reais e o Preço dos anúncios na tabela que começa na célula à direita. Os Rendimentos Estimados e Reais dos Anúncios são calculados automaticamente. A instrução seguinte está na célula A18.","Rendimentos Estimados","Rendimentos Reais","Tipo","Preço","Rendimentos Estimados Totais","Rendimentos Reais Totais"]
[{"$nulls":3},"Capas /",null,{"$f":"B14*E14","v":{"v":0,"d":"0.00 €"}},{"$f":"C14*E14","v":{"v":0,"d":"0.00 €"}}]
[{"$nulls":3},"Meias-páginas /",null,{"$f":"B15*E15","v":{"v":0,"d":"0.00 €"}},{"$f":"C15*E15","v":{"v":0,"d":"0.00 €"}}]
[{"$nulls":3},"Quartos-de-páginas /",null,{"v":0,"d":"0.00 €"},{"v":0,"d":"0.00 €"}]
[null," ",{"$nulls":3},{"$f":"SUBTOTAL(109,AnúnciosNoPrograma[Rendimentos Estimados Totais])","v":{"v":0,"d":"0.00 €"}},{"$f":"SUBTOTAL(109,AnúnciosNoPrograma[Rendimentos Reais Totais])","v":{"v":0,"d":"0.00 €"}}]
["A etiqueta Apresentadores ou Fornecedores está na célula à direita.","Expositores/vendedores"]
["Introduza o número de expositores e vendedores Estimados e Reais e os Preços dos stands na tabela que começa na célula à direita. Os Rendimentos Estimados e Reais são calculados automaticamente. A instrução seguinte está na célula A24.","Rendimentos Estimados","Rendimentos Reais","Tipo","Preço","Rendimentos Estimados Totais","Rendimentos Reais Totais"]
[{"$nulls":3},"Stands grandes /",null,{"$f":"B20*E20","v":{"v":0,"d":"0.00 €"}},{"$f":"C20*E20","v":{"v":0,"d":"0.00 €"}}]
[{"$nulls":3},"Stands médios /",null,{"$f":"B21*E21","v":{"v":0,"d":"0.00 €"}},{"$f":"C21*E21","v":{"v":0,"d":"0.00 €"}}]
[{"$nulls":3},"Stands pequenos /",null,{"v":0,"d":"0.00 €"},{"v":0,"d":"0.00 €"}]
[null," ",{"$nulls":3},{"$f":"SUBTOTAL(109,ExpositoresEVendedores[Rendimentos Estimados Totais])","v":{"v":0,"d":"0.00 €"}},{"$f":"SUBTOTAL(109,ExpositoresEVendedores[Rendimentos Reais Totais])","v":{"v":0,"d":"0.00 €"}}]
["A etiqueta Venda de itens está na célula à direita.","Itens vendidos"]
["Introduza o número de Itens vendidos Estimados e Reais e os Preços dos itens na tabela que começa na célula à direita. Os Rendimentos Estimados e Reais são calculados automaticamente.","Rendimentos Estimados","Rendimentos Reais","Tipo","Preço","Rendimentos Estimados Totais","Rendimentos Reais Totais"]
[{"$nulls":3},"Itens /",null,{"$f":"B26*E26","v":{"v":0,"d":"0.00 €"}},{"$f":"C26*E26","v":{"v":0,"d":"0.00 €"}}]
[{"$nulls":3},"Itens /",null,{"$f":"B27*E27","v":{"v":0,"d":"0.00 €"}},{"$f":"C27*E27","v":{"v":0,"d":"0.00 €"}}]
[{"$nulls":3},"Itens /",null,{"v":0,"d":"0.00 €"},{"v":0,"d":"0.00 €"}]
[{"$nulls":3},"Itens /",null,{"v":0,"d":"0.00 €"},{"v":0,"d":"0.00 €"}]
[null," ",{"$nulls":3},{"$f":"SUBTOTAL(109,VendaDeItens[Rendimentos Estimados Totais])","v":{"v":0,"d":"0.00 €"}},{"$f":"SUBTOTAL(109,VendaDeItens[Rendimentos Reais Totais])","v":{"v":0,"d":"0.00 €"}}]

{"sheet":"Resumo","index":3,"n_rows":9,"n_cols":4,"rows_kept":9,"merged":[[1,1,1,3],[2,2,2,3],[8,1,8,4],[9,1,9,3]]}
["O Resumo e o Gráfico dos Lucros e Perdas a mostrar os Rendimentos e as Despesas Totais são atualizados automaticamente nesta folha de cálculo. Existem instruções úteis sobre como utilizar esta folha de cálculo nas células desta coluna. Prima a Seta Para Baixo para começar."]
["O Nome do Evento é atualizado automaticamente na célula à direita.",{"$f":"Despesas!B2","v":"Orçamento do Evento \nNome do Evento"}]
["A etiqueta Resumo dos Lucros e Perdas está na célula C3. A instrução seguinte está na célula A5.",null,"Resumo dos Lucros e Perdas"]
[]
["A tabela Total que começa na célula à direita é atualizada automaticamente. A instrução seguinte está na célula A9.","Total","Rendimentos Estimados","Rendimentos Reais"]
[null,"Rendimentos totais",{"$f":"Rendimentos!F5","v":{"v":1936,"d":"1,936.00 €"}},{"$f":"Rendimentos!G5","v":{"v":1831,"d":"1,831.00 €"}}]
[null,"Despesas totais",{"$f":"Despesas!G5","v":{"v":1145,"d":"1,145.00 €"}},{"$f":"Despesas!H5","v":{"v":395,"d":"395.00 €"}}]
[null,"Lucros (ou perdas) totais",{"$f":"C6-C7","v":{"v":791,"d":"791.00 €"}},{"$f":"D6-D7","v":{"v":1436,"d":"1,436.00 €"}}]
["O gráfico de colunas agrupadas a mostrar uma comparação entre os valores Estimados e Reais dos Rendimentos Totais e das Despesas Totais está na célula à direita.","O gráfico de colunas agrupadas a mostrar uma comparação entre os valores Estimados e Reais dos Rendimentos Totais e das Despesas Totais está nesta célula."]